Cogmind - Beta 10.2 --- EXPLORER MODE // 2021.11.17 @ 19:08:20 // Winter2019/RPGLIKE Player: Storm Mk9 Result: Destroyed by C-40 Crusher with Compactor Performance ------------- Evolutions (3) 1500 Regions Visited (12) 2400 Robots Destroyed (345) 1725 Value Destroyed (9990) 9990 Prototype IDs (31) 620 Alien Tech Used (0) 0 Bonus (3113) 3113 TOTAL SCORE: 19348 Bonus ------- High Alert Combat Kills 1616 Follower Combat Kills 276 Entered Garrisons 400 Used RIF Installer 1000 Aligned with FarCom 300 Friendly Fire -479 Cogmind --------- Core Integrity 0/1450 Matter 300/300 Energy 100/100 System Corruption 16% Temperature Cool (0) Movement Core (50) Location -7/Waste Parts ------- > --- POWER (3) -------- (None) > --- PROPULSION (2) --- (None) > --- UTILITY (8) ------ (None) > --- WEAPON (5) ------- (None) > --- INVENTORY (0) ---- (None) Peak State ------------ > --- POWER ------------ Heavy Deuterium Engine Heavy Deuterium Engine Heavy Deuterium Engine > --- PROPULSION ------- Improved Titanium Leg Improved Titanium Leg > --- UTILITY ---------- Large Battery Advanced Terrain Scanner Terrain Scan Processor Targeting Computer Light Armor Plating Improved Light Armor Plating Improved Light Armor Plating Improved Light Armor Plating > --- WEAPON ----------- EM Pulse Cannon EM Pulse Cannon EM Pulse Cannon EM Pulse Cannon Latent Energy Streamer > --- INVENTORY -------- (None) [Rating: 62] Favorites ----------- Power Light Nuclear Core Engine Ion Engine Power Core Light Nuclear Core Propulsion Improved Titanium Leg Leg Improved Titanium Leg Utility Improved Light Armor Plating Device Improved Terrain Scanner Storage Large Battery Processor Targeting Computer Protection Improved Light Armor Plating Weapon EM Pulse Cannon Energy Gun EM Pulse Gun Energy Cannon EM Pulse Cannon Build | -11 -10 -10 -9 -9 -9 -8 -8 -8 -8 -8 -7 -7 ------- Run | Scr Mat Min Mat Min Exi Min Mat Gar Mat Gar Fac Was Slots Evolved 14 | 6 . 1 2 1 . 1 1 1 . 1 . . Power 2 | 1 . . . 1 . . . . . . . . Propulsion 1 | 1 . . . . . . . . . . . . Utility 7 | 3 . 1 1 . . 1 . 1 . . . . Weapon 4 | 1 . . 1 . . . 1 . . 1 . . Parts Attached 54 | 12 3 2 . . 2 1 . 6 18 2 4 4 Power 14 | 2 1 1 . . . 1 . 1 4 . 4 . Engine 9 | 2 1 . . . . 1 . . 1 . 4 . Core 5 | . . 1 . . . . . 1 3 . . . Reactor . | . . . . . . . . . . . . . Propulsion 7 | 2 . 1 . . . . . 1 3 . . . Treads . | . . . . . . . . . . . . . Leg 7 | 2 . 1 . . . . . 1 3 . . . Wheel . | . . . . . . . . . . . . . Hover . | . . . . . . . . . . . . . Flight . | . . . . . . . . . . . . . Utility 16 | 6 1 . . . 1 . . 3 2 . . 3 Device 5 | 2 . . . . . . . . 1 . . 2 Storage 1 | . . . . . 1 . . . . . . . Processor 3 | 2 1 . . . . . . . . . . . Hackware . | . . . . . . . . . . . . . Protection 7 | 2 . . . . . . . 3 1 . . 1 Artifact . | . . . . . . . . . . . . . Weapon 17 | 2 1 . . . 1 . . 1 9 2 . 1 Energy Gun 10 | 2 1 . . . . . . 1 6 . . . Energy Cannon 7 | . . . . . 1 . . . 3 2 . 1 Ballistic Gun . | . . . . . . . . . . . . . Ballistic Cannon . | . . . . . . . . . . . . . Launcher . | . . . . . . . . . . . . . Special Weapon . | . . . . . . . . . . . . . Impact Weapon . | . . . . . . . . . . . . . Slashing Weapon . | . . . . . . . . . . . . . Piercing Weapon . | . . . . . . . . . . . . . Special Melee Weapon . | . . . . . . . . . . . . . Unidentified Prototypes 3 | . . . . . . . . . 2 . 1 . Parts Lost 10 | . . . . . . . . . . . . 10 Power 2 | . . . . . . . . . . . . 2 Propulsion 1 | . . . . . . . . . . . . 1 Utility 4 | . . . . . . . . . . . . 4 Weapon 3 | . . . . . . . . . . . . 3 Highest Loss Streak 10 | . . . . . . . . . . . . 10 Average Slot Usage (%) 95 | . 99 90 76 71 76 83 81 95 97 99 99 40 Engine 7 | . 19 11 7 7 7 9 12 8 2 5 12 7 Core 8 | . . 6 7 7 7 6 6 9 13 11 3 . Leg 11 | . 20 18 15 14 14 13 12 11 10 11 11 4 Device 5 | . 10 9 7 7 7 6 6 5 5 5 5 2 Storage 4 | . . . . . . 6 6 5 5 5 5 2 Processor 12 | . 19 18 15 14 14 13 12 11 11 11 11 5 Protection 17 | . 10 9 7 7 7 6 6 15 21 22 22 7 Energy Gun 8 | . 20 18 15 14 14 13 12 16 8 3 . . Energy Cannon 13 | . . . . . 4 6 6 5 13 19 27 9 Naked Turns 75 | . . . . . . . . . . . . 75 Heaviest Build 83 | 17 18 18 18 18 31 34 34 45 62 71 83 83 Greatest Support 45 | 20 20 30 30 30 30 30 30 35 45 45 45 45 Greatest Overweight (x) 2 | 1 . 1 . . 1 1 1 2 2 1 1 1 Average Overweight (x) . | . . . . . . 1 1 1 1 1 1 . Largest Inventory Capacity . | . . . . . . . . . . . . . Average Capacity . | . . . . . . . . . . . . . Most Carried . | . . . . . . . . . . . . . Average Carried . | . . . . . . . . . . . . . Final Capacity . | . . . . . . . . . . . . . Final Carried . | . . . . . . . . . . . . . Class Distribution -------------------- 36% | Hacker-Tank 23% | Scavenger-Tank 19% | Hacker-Mutant 12% | Generator-Tank 8% | Hacker-Skirmisher Dominant Class ---------------- Hacker-Mutant | -10/Materials Hacker-Mutant | -10/Mines Hacker-Mutant | -9/Materials Hacker-Mutant | -9/Mines Hacker-Mutant | -9/Exiles Hacker-Skirmisher | -8/Mines Hacker-Skirmisher | -8/Materials Scavenger-Tank | -8/Garrison Scavenger-Tank | -8/Materials Hacker-Tank | -8/Garrison Generator-Tank | -7/Factory Hacker-Mutant | -7/Waste Resources | -11 -10 -10 -9 -9 -9 -8 -8 -8 -8 -8 -7 -7 ----------- Run | Scr Mat Min Mat Min Exi Min Mat Gar Mat Gar Fac Was Matter Collected 703 | 320 30 20 . . . 20 10 60 180 20 40 3 Remotely . | . . . . . . . . . . . . . Salvage Created 14049 | 193 656 . 172 . . 117 . 1815 4233 2036 4827 . Parts 740 | 15 34 9 8 . . 8 . 65 281 77 233 10 Haulers Intercepted 10 | . 1 . . . . . . . 6 . 3 . Recyclers Shooed 6 | . 1 . 1 . . 1 . . 3 . . . Parts Field Recycled . | . . . . . . . . . . . . . Retrieved Matter . | . . . . . . . . . . . . . Parts Self-Destructed . | . . . . . . . . . . . . . Prevented . | . . . . . . . . . . . . . Kills | -11 -10 -10 -9 -9 -9 -8 -8 -8 -8 -8 -7 -7 ------- Run | Scr Mat Min Mat Min Exi Min Mat Gar Mat Gar Fac Was Combat Hostiles Destroyed 147 | . 5 7 3 . . 3 . 25 46 28 29 1 Melee 1 | . . . . . . . . . . . . 1 Guns 57 | . 5 5 3 . . 3 . 18 20 3 . . Cannons 46 | . . . . . . . . . 15 16 15 . AOE 25 | . . 2 . . . . . 4 6 4 9 . Classes Destroyed 19 | 3 5 2 1 . . . . 2 3 . 2 1 Worker 53 | 2 . . . . . . . . 29 . 22 . Builder 56 | . 3 . . . . . . . 27 . 26 . Tunneler 18 | 5 2 . . . . . . . 2 . 9 . Hauler 10 | . 1 . . . . . . . 6 . 3 . Recycler 38 | 1 3 . . . . 1 . . 10 . 23 . Mechanic 2 | . . . . . . . . . 1 . 1 . Operator 7 | . . . . . . . . . 6 . 1 . Watcher 14 | . 3 . . . . . . . 5 . 6 . Swarmer 27 | . 3 2 1 . . 3 . 4 6 5 3 . Grunt 68 | . 2 2 1 . . . . 12 28 10 13 . Brawler 3 | . . . . . . . . 1 . 1 1 . Duelist 3 | . . . . . . . . . 1 2 . . Protector 1 | . . . . . . . . . . . 1 . Sentry 36 | . . . 1 . . . . 7 12 10 6 . Demolisher 1 | . . 1 . . . . . . . . . . Hunter 3 | . . . . . . . . 1 1 . 1 . Programmer 4 | . . . . . . . . . . . 4 . Compactor 1 | . . . . . . . . . . . . 1 Assembled 2 | . . 2 . . . . . . . . . . Best Kill Streak 24 | 7 7 3 1 . . 4 . 5 7 8 24 1 Combat Bots Only 8 | . 2 3 1 . . 3 . 5 5 8 5 1 Max Kills in Single Turn 3 | 1 2 2 1 . . 2 . 2 3 3 3 1 Gunslinging 1 | . . . . . . . . 1 . . . . Exploded 2 | . . 2 . . . . . 2 2 2 2 . Melee 1 | . . . . . . . . . . . . 1 Uniques/NPCs Destroyed . | . . . . . . . . . . . . . Combat | -11 -10 -10 -9 -9 -9 -8 -8 -8 -8 -8 -7 -7 -------- Run | Scr Mat Min Mat Min Exi Min Mat Gar Mat Gar Fac Was Damage Taken 4389 | . 92 101 64 . . 22 . 834 1011 354 629 1282 Core 3212 | . 75 74 49 . . 14 . 533 598 228 382 1259 Absorbed by Shields 11 | . . . . . . . . . . 11 . . Redirected to Core 1699 | . 40 61 35 . . 14 . 425 544 173 335 72 Core Remaining (%) 97 | 100 . 100 . . . 94 . . . 97 . . Volleys Fired 598 | 9 37 12 12 . . 3 2 80 192 69 173 9 Largest 5 | 2 2 2 2 . . 2 2 3 3 3 4 5 Hottest 312 | 80 80 80 80 . . 80 80 130 176 189 252 312 Shots Fired 1885 | 18 74 24 24 . . 6 4 228 573 207 692 35 Gun 739 | 18 74 24 24 . . 6 4 228 293 68 . . Cannon 1146 | . . . . . . . . . 280 139 692 35 Launcher . | . . . . . . . . . . . . . Special . | . . . . . . . . . . . . . Kinetic . | . . . . . . . . . . . . . Thermal . | . . . . . . . . . . . . . Explosive . | . . . . . . . . . . . . . Electromagnetic 1885 | 18 74 24 24 . . 6 4 228 573 207 692 35 Robot Hit Streak 66 | 11 26 22 13 . . 18 . 30 66 30 59 62 Robot Miss Streak 2 | . 2 1 2 . . . . 2 2 1 1 1 Penetration Max . | . . . . . . . . . . . . . Secondary Targets 8 | . 1 . 1 . . 1 . 5 . . . . Max Gunslinging Chain 1 | . 1 . 1 . . 1 . 1 . . . . Shots Hit Robots 1036 | 11 56 20 19 . . 5 . 167 331 134 263 30 Core Hits 528 | 8 23 13 6 . . 4 . 67 168 55 150 34 Critical Hits 5 | . . . . . . . . . . 3 2 . Critical Kills 2 | . . . . . . . . . . . 2 . Critical Parts Destroyed 1 | . . . . . . . . . . 1 . . Melee Attacks . | . . . . . . . . . . . . . Impact . | . . . . . . . . . . . . . Slashing . | . . . . . . . . . . . . . Piercing . | . . . . . . . . . . . . . Sneak Attacks . | . . . . . . . . . . . . . Combat Hostiles . | . . . . . . . . . . . . . Follow-up Attacks . | . . . . . . . . . . . . . Damage Inflicted 24864 | 218 924 354 202 . . 126 . 2949 8240 3567 8044 240 Guns 8327 | 145 824 239 202 . . 53 . 2390 3620 854 . . Cannons 11000 | . . . . . . . . . 3212 1973 5765 50 Explosions 5336 | 73 100 115 . . . 73 . 559 1390 740 2279 7 Melee . | . . . . . . . . . . . . . Ramming 201 | . . . . . . . . . 18 . . 183 Kinetic . | . . . . . . . . . . . . . Thermal 4700 | 73 100 115 . . . 73 . 559 1341 740 1699 . Explosive 518 | . . . . . . . . . 49 . 469 . Electromagnetic 19445 | 145 824 239 202 . . 53 . 2390 6832 2827 5876 57 Impact . | . . . . . . . . . . . . . Slashing . | . . . . . . . . . . . . . Piercing . | . . . . . . . . . . . . . Highest Corruption 16 | . . . . . . . . . . . . 16 Average Corruption 11 | . . . . . . . . . . . . 11 Corruption Purged . | . . . . . . . . . . . . . Effects 8 | . . . . . . . . . . . . 8 Message Errors 1 | . . . . . . . . . . . . 1 Matter Fused 1 | . . . . . . . . . . . . 1 Energy Discharges 1 | . . . . . . . . . . . . 1 Data Loss (minor) 1 | . . . . . . . . . . . . 1 Targeting Errors 4 | . . . . . . . . . . . . 4 Overload Shots . | . . . . . . . . . . . . . Overflow Damage 565 | . . . . . . 24 . 1 155 29 356 . Projectiles 224 | . . . . . . . . . 105 11 108 . Explosions 341 | . . . . . . 24 . 1 50 18 248 . Melee . | . . . . . . . . . . . . . Knockbacks . | . . . . . . . . . . . . . Impact . | . . . . . . . . . . . . . Kinetic . | . . . . . . . . . . . . . Secondary . | . . . . . . . . . . . . . Self-Inflicted Damage 716 | . 14 . . . . . . 81 288 54 185 94 Shots 32 | . 1 . . . . . . 3 13 3 11 1 Rammed 62 | . . . . . . . . . 1 . . 61 Targets Rammed 62 | . . . . . . . . . 1 . . 61 Kicked . | . . . . . . . . . . . . . Crushed . | . . . . . . . . . . . . . Highest Temperature 330 | . . . . . . . . . 149 28 330 326 Average Temperature 72 | . . . . . . . . . 13 10 77 134 Received Heat Transfer 1809 | . 27 30 9 . . . . 585 693 252 213 . Effects 1 | . . . . . . . . . . . 1 . Energy Bleed 1 | . . . . . . . . . . . 1 . Siege Activations . | . . . . . . . . . . . . . Robots Corrupted 29 | . . . . . . . . 6 8 8 7 . Combat Hostiles 18 | . . . . . . . . 3 5 5 5 . Parts Fried 143 | . 8 . . . . . . 17 53 18 47 . Impact Corruptions . | . . . . . . . . . . . . . Robots Melted . | . . . . . . . . . . . . . Combat Hostiles . | . . . . . . . . . . . . . Parts Melted 8 | 1 . . . . . . . 1 3 . 3 . Heat Transferred 4751 | 100 100 100 . . . 100 . 700 1500 675 1476 . Parts Sabotaged . | . . . . . . . . . . . . . Parts Stolen . | . . . . . . . . . . . . . Parts Stripped . | . . . . . . . . . . . . . Power Chain Reactions 58 | 1 3 1 . . . 1 . 4 21 9 18 . Missiles Intercepted . | . . . . . . . . . . . . . Latent Energy Used 215 | . . . . . . . . . . . . 215 LE Corruption 6 | . . . . . . . . . . . . 6 Alert | -11 -10 -10 -9 -9 -9 -8 -8 -8 -8 -8 -7 -7 ------- Run | Scr Mat Min Mat Min Exi Min Mat Gar Mat Gar Fac Was Peak Influence 1519 | 40 232 174 242 66 . 93 . 824 975 1203 1519 328 Initial 468 | . 19 26 . 66 . . . . 294 93 468 328 Average 529 | 24 96 70 92 66 . 17 . 362 496 799 998 250 Maximum Alert Level 4 | . 1 . 1 . . . . 3 3 4 4 1 Low Security (%) 33 | 100 87 100 86 100 . 100 100 40 20 5 . 44 Level 1 9 | . 12 . 13 . . . . 9 17 9 . 55 Level 2 21 | . . . . . . . . 36 35 26 15 . Level 3 24 | . . . . . . . . 13 26 25 50 . Level 4 11 | . . . . . . . . . . 32 33 . Level 5 . | . . . . . . . . . . . . . High Security . | . . . . . . . . . . . . . Max Security . | . . . . . . . . . . . . . Squads Dispatched 21 | . . . 2 . . . . . 10 . 9 . Investigation 1 | . . . . . . . . . 1 . . . Extermination 3 | . . . . . . . . . . . 3 . Reinforcement 9 | . . . 2 . . . . . 5 . 2 . Assault 1 | . . . . . . . . . . . 1 . Garrison 7 | . . . . . . . . . 4 . 3 . Intercept . | . . . . . . . . . . . . . Construction Impeded 2 | . . . . . . . . . 2 . . . Haulers Reinforced . | . . . . . . . . . . . . . Stealth | -11 -10 -10 -9 -9 -9 -8 -8 -8 -8 -8 -7 -7 --------- Run | Scr Mat Min Mat Min Exi Min Mat Gar Mat Gar Fac Was Distress Signals 4 | . . . 1 . . . . . 1 . 2 . Communications Jammed . | . . . . . . . . . . . . . Distress Signals . | . . . . . . . . . . . . . Times Spotted 184 | . 13 7 7 . . 3 . 28 58 28 36 4 Peak Tracking Total 5 | . 3 2 3 . . 2 1 5 5 4 5 4 Tactical Retreats 15 | . 4 . 1 . . . . 2 5 3 . . Traps | -11 -10 -10 -9 -9 -9 -8 -8 -8 -8 -8 -7 -7 ------- Run | Scr Mat Min Mat Min Exi Min Mat Gar Mat Gar Fac Was Traps Triggered 17 | . 2 . . . . . . 3 . 9 3 . Indirectly . | . . . . . . . . . . . . . Trap Hack Attempts . | . . . . . . . . . . . . . Triggered . | . . . . . . . . . . . . . Disarmed . | . . . . . . . . . . . . . Reprogrammed . | . . . . . . . . . . . . . Reused . | . . . . . . . . . . . . . Traps Extracted . | . . . . . . . . . . . . . Installed . | . . . . . . . . . . . . . Triggered 2 | . 1 . . . . . . 1 . . . . Machines | -11 -10 -10 -9 -9 -9 -8 -8 -8 -8 -8 -7 -7 ---------- Run | Scr Mat Min Mat Min Exi Min Mat Gar Mat Gar Fac Was Machines Disabled 162 | . 2 2 1 . . . . 3 35 7 112 . Max in Single Turn 10 | . 1 1 1 . . . . 2 3 2 10 . Garrison Relay 5 | . . . . . . . . 2 . 3 . . Phase Generator 2 | . . . . . . . . 1 . 1 . . Machines Sabotaged . | . . . . . . . . . . . . . Garrisons Compromised . | . . . . . . . . . . . . . Overloaded Fab Kills . | . . . . . . . . . . . . . Fab Network Shutdowns . | . . . . . . . . . . . . . Hacking | -11 -10 -10 -9 -9 -9 -8 -8 -8 -8 -8 -7 -7 --------- Run | Scr Mat Min Mat Min Exi Min Mat Gar Mat Gar Fac Was Machines Accessed 17 | . 7 1 1 . 1 . 2 . 4 . 1 . Terminals 10 | . 5 . 1 . . . 1 . 3 . . . Fabricators . | . . . . . . . . . . . . . Repair Stations . | . . . . . . . . . . . . . Recycling Units 2 | . 2 . . . . . . . . . . . Scanalyzers . | . . . . . . . . . . . . . Garrison Access 3 | . . . . . . . 1 . 1 . 1 . Total Hacks 46 | . 22 1 4 . 1 . 4 . 12 . 2 . Successful 37 | . 17 1 3 . 1 . 3 . 10 . 2 . Failed 9 | . 5 . 1 . . . 1 . 2 . . . Catastrophic . | . . . . . . . . . . . . . Database Lockouts . | . . . . . . . . . . . . . Manual 12 | . 5 . . . 1 . 2 . 4 . . . Terminals 35 | . 18 . 4 . . . 3 . 10 . . . Fabricators . | . . . . . . . . . . . . . Repair Stations . | . . . . . . . . . . . . . Recycling Units 4 | . 4 . . . . . . . . . . . Scanalyzers . | . . . . . . . . . . . . . Garrison Access 5 | . . . . . . . 1 . 2 . 2 . Terminal Hacks 25 | . 11 1 3 . 1 . 2 . 7 . . . Prototype ID Bank 3 | . 2 . 1 . . . . . . . . . Open Door 1 | . . 1 . . . . . . . . . . Level Access Points 1 | . . . . . . . . . 1 . . . Branch Access Points 3 | . 1 . . . . . 1 . 1 . . . Alert Level 1 | . . . . . . . . . 1 . . . Locate Traps 2 | . 1 . . . . . . . 1 . . . Dispatch Records 3 | . 1 . . . . . 1 . 1 . . . Maintenance Status 1 | . . . . . . . . . 1 . . . Security Status 1 | . . . . . . . . . 1 . . . Surveillance Status 1 | . 1 . . . . . . . . . . . Transport Status 1 | . 1 . . . . . . . . . . . Investigation Status 1 | . . . 1 . . . . . . . . . Reinforcement Status 1 | . 1 . . . . . . . . . . . Recall Assault 1 | . 1 . . . . . . . . . . . Hauler Manifests 2 | . 1 . 1 . . . . . . . . . Zone Layout 1 | . 1 . . . . . . . . . . . EX-Prototype ID Bank 1 | . . . . . 1 . . . . . . . Fabricator Hacks . | . . . . . . . . . . . . . Repair Station Hacks . | . . . . . . . . . . . . . Recycling Unit Hacks 2 | . 2 . . . . . . . . . . . Report Inventory 2 | . 2 . . . . . . . . . . . Scanalyzer . | . . . . . . . . . . . . . Garrison Access Hacks 5 | . . . . . . . 1 . 2 . 2 . Unlock Access 3 | . . . . . . . 1 . 1 . 1 . Coupler Status 2 | . . . . . . . . . 1 . 1 . Unauthorized Hacks 5 | . 4 . . . . . . . 1 . . . Terminals 3 | . 2 . . . . . . . 1 . . . Botnet 2 | . 2 . . . . . . . . . . . Search 1 | . . . . . . . . . 1 . . . Fabricators . | . . . . . . . . . . . . . Repair Stations . | . . . . . . . . . . . . . Recycling Units 2 | . 2 . . . . . . . . . . . Reject 2 | . 2 . . . . . . . . . . . Scanalyzers . | . . . . . . . . . . . . . Garrison Access . | . . . . . . . . . . . . . Data Cores Recovered 1 | . . . . . . . . . 1 . . . Used . | . . . . . . . . . . . . . Hacking Detections 12 | . 7 . 1 . . . . . 3 . 1 . Full Trace Events 4 | . 2 . . . . . . . 2 . . . Feedback Events . | . . . . . . . . . . . . . Feedback Blocked . | . . . . . . . . . . . . . Robot Schematics Acquired . | . . . . . . . . . . . . . Robots Built . | . . . . . . . . . . . . . Matter . | . . . . . . . . . . . . . Time . | . . . . . . . . . . . . . Total Robot Build Rating . | . . . . . . . . . . . . . Part Schematics Acquired . | . . . . . . . . . . . . . Parts Built . | . . . . . . . . . . . . . Matter . | . . . . . . . . . . . . . Time . | . . . . . . . . . . . . . Total Part Build Rating . | . . . . . . . . . . . . . Parts Repaired . | . . . . . . . . . . . . . Time . | . . . . . . . . . . . . . Parts Recycled . | . . . . . . . . . . . . . Recycled Matter . | . . . . . . . . . . . . . Retrieved Matter . | . . . . . . . . . . . . . Retrieved Components . | . . . . . . . . . . . . . Parts Scanalyzed . | . . . . . . . . . . . . . Part Schematics Acquired . | . . . . . . . . . . . . . Parts Damaged . | . . . . . . . . . . . . . Bothacking | -11 -10 -10 -9 -9 -9 -8 -8 -8 -8 -8 -7 -7 ------------ Run | Scr Mat Min Mat Min Exi Min Mat Gar Mat Gar Fac Was Used RIF Installer 2 | . . . . . . . . 1 . 1 . . Coupler Efficiency 1 | . . . . . . . . . . 1 . . Robots Hacked . | . . . . . . . . . . . . . Non-combat . | . . . . . . . . . . . . . Combat . | . . . . . . . . . . . . . Robot Hacks Applied . | . . . . . . . . . . . . . Relay Couplers Released 8 | . . . . . . . . 3 . 5 . . Machine Destruction 8 | . . . . . . . . 3 . 5 . . Robots Rewired 4 | . . . . . . . . 4 . . . . Allies Hacked . | . . . . . . . . . . . . . Hacks Repelled . | . . . . . . . . . . . . . Allies | -11 -10 -10 -9 -9 -9 -8 -8 -8 -8 -8 -7 -7 -------- Run | Scr Mat Min Mat Min Exi Min Mat Gar Mat Gar Fac Was Total Allies 12 | . . 5 . . . . . 4 . . 3 . Largest Group 5 | . . 5 5 . . . . 4 4 . 3 2 Highest-Rated Group 93 | . . 85 85 . . . . 62 62 . 93 57 Highest-Rated Ally 31 | . . 31 31 . . . . 16 16 . 31 31 Total Orders . | . . . . . . . . . . . . . Ally Attacks 82 | . . 1 19 . . . . . 3 . 44 15 Total Damage 1049 | . . 18 216 . . . . . 44 . 542 229 Kills 13 | . . 1 7 . . . . . . . 4 1 Allies Corrupted . | . . . . . . . . . . . . . Allies Melted . | . . . . . . . . . . . . . Intel | -11 -10 -10 -9 -9 -9 -8 -8 -8 -8 -8 -7 -7 ------- Run | Scr Mat Min Mat Min Exi Min Mat Gar Mat Gar Fac Was Robot Analysis Total . | . . . . . . . . . . . . . Derelict Logs Recovered 2 | . . 2 . . . . . . . . . . Drone Launches . | . . . . . . . . . . . . . Drone Recoveries . | . . . . . . . . . . . . . Exploration | -11 -10 -10 -9 -9 -9 -8 -8 -8 -8 -8 -7 -7 ------------- Run | Scr Mat Min Mat Min Exi Min Mat Gar Mat Gar Fac Was Turns Passed 11002 | 262 648 620 122 20 398 638 144 739 3576 1434 2254 147 Spaces Moved 5721 | 138 425 454 72 17 322 401 93 275 1755 723 1012 34 Core 21 | 7 . . . . . . . . . . . 14 Treads . | . . . . . . . . . . . . . Legs 5700 | 131 425 454 72 17 322 401 93 275 1755 723 1012 20 Wheels . | . . . . . . . . . . . . . Hover . | . . . . . . . . . . . . . Flight . | . . . . . . . . . . . . . Fastest Speed 50 | 50 120 120 120 120 120 150 150 150 150 160 160 50 Average Speed 148 | 116 120 120 120 120 122 150 150 150 160 160 160 116 Slowest Speed 190 | 120 120 150 120 120 150 150 150 180 190 160 160 160 Overloaded Moves . | . . . . . . . . . . . . . Propulsion Burnouts . | . . . . . . . . . . . . . Robots Hopped 3 | . . . . . . . . . 3 . . . Cave-ins Triggered . | . . . . . . . . . . . . . Exploration Rate (%) 51 | 7 77 94 17 8 70 92 11 63 88 93 35 16 Regions Visited 12 Branch Regions 4 Pre-discovered Areas . | . . . . . . . . . . . . . Known Exits Taken 9 | 1 1 1 1 1 1 1 1 . 1 . . . Unknown Exits Taken . | . . . . . . . . . . . . . Scrap Searched 1 | . . 1 . . . . . . . . . . Spaces Dug . | . . . . . . . . . . . . . Terrain Destroyed 1150 | 5 11 10 . . . 3 . 70 201 169 681 . Melee . | . . . . . . . . . . . . . Projectile . | . . . . . . . . . . . . . AOE 1150 | 5 11 10 . . . 3 . 70 201 169 681 . Terrain Rammed . | . . . . . . . . . . . . . Walls Destroyed . | . . . . . . . . . . . . . Machines Disabled . | . . . . . . . . . . . . . Actions | -11 -10 -10 -9 -9 -9 -8 -8 -8 -8 -8 -7 -7 --------- Run | Scr Mat Min Mat Min Exi Min Mat Gar Mat Gar Fac Was Total 6832 | 216 488 505 83 16 323 431 94 423 2075 845 1215 118 Wait 174 | 56 15 28 . . . 25 . 2 24 5 9 10 Move 5706 | 137 424 453 71 16 321 400 92 274 1750 722 1012 34 Hop 1 | . . . . . . . . . 1 . . . Pick Up . | . . . . . . . . . . . . . Fast Attach 54 | 12 3 2 . . 2 1 . 6 18 2 4 4 Attach . | . . . . . . . . . . . . . Detach . | . . . . . . . . . . . . . Swap . | . . . . . . . . . . . . . Drop 30 | 2 2 2 . . . . . 3 16 1 4 . Fire 598 | 9 37 12 12 . . 3 2 80 192 69 173 9 Melee . | . . . . . . . . . . . . . Ram 61 | . . . . . . . . . . . . 61 Kick 1 | . . . . . . . . . 1 . . . Crush . | . . . . . . . . . . . . . Escape Stasis 38 | . . . . . . . . 15 . 23 . . Rewire 23 | . . . . . . . . 23 . . . . Trap . | . . . . . . . . . . . . . Miscellaneous 146 | . 7 8 . . . 2 . 20 73 23 13 . Route ------- -11/Scrapyard -10/Materials (discovered 3 exits: *Mat x2 / *Min) -10/Mines (discovered 2 exits: *Mat x2) -9/Materials (discovered 2 exits: *Min x2) -9/Mines -9/Exiles -8/Mines (discovered 2 exits: *Mat x2) -8/Materials -8/Garrison -8/Materials (discovered 4 exits: *Fac x3 / Gar) -8/Garrison (discovered 3 exits: *Fac x3) -7/Factory (discovered 4 exits: *Fac x2 / *Low / Gar) -7/Waste History --------- Turn | Location | Event 1 | -11/Scrapyard | Upgraded with Power slot (x1) 1 | -11/Scrapyard | Upgraded with Propulsion slot (x1) 1 | -11/Scrapyard | Upgraded with Utility slot (x3) 1 | -11/Scrapyard | Upgraded with Weapon slot (x1) 2 | -11/Scrapyard | Met Revision 17 11 | -11/Scrapyard | Identified exit to Materials 11 | -11/Scrapyard | Discovered exit to Materials (range 16) 263 | -11/Scrapyard | Entered Materials 302 | -10/Materials | Build established: Hacker-Mutant 440 | -10/Materials | Identified exit to Mines 704 | -10/Materials | Identified exit to Materials 704 | -10/Materials | Discovered exit to Materials (range 16) 827 | -10/Materials | Discovered exit to Materials (range 16) 911 | -10/Materials | Entered Mines 913 | -10/Mines | Reached level 2 919 | -10/Mines | Upgraded with Utility slot (x1) 934 | -10/Mines | Assisted by bots powering up and referring to "LRC-V3" 979 | -10/Mines | Met a Derelict bent on vengeance 1008 | -10/Mines | Assembled infested the area 1013 | -10/Mines | Assisted by a Guerilla fighting off Assembled 1097 | -10/Mines | Discovered exit to Materials (range 12) 1230 | -10/Mines | Found a hidden stash of uninstalled traps 1382 | -10/Mines | Found the Drone Emporium 1531 | -10/Mines | Entered Materials 1531 | -9/Materials | Accompanied by 5 allies 1532 | -9/Materials | Identified exit to Mines 1533 | -9/Materials | Reached level 3 1533 | -9/Materials | Reached level 4 1533 | -9/Materials | Upgraded with Utility slot (x1) 1533 | -9/Materials | Upgraded with Weapon slot (x1) 1536 | -9/Materials | Led the pair of lost Derelicts to an unsafe place 1618 | -9/Materials | Met 8R-AWN 1645 | -9/Materials | Reached level 5 1653 | -9/Materials | Entered Mines 1653 | -9/Mines | Upgraded with Power slot (x1) 1655 | -9/Mines | Identified exit to Exiles 1655 | -9/Mines | Discovered exit to Exiles (range 6) 1655 | -9/Mines | Followed 8R-AWN into the Mines 1673 | -9/Mines | Entered Exiles 1707 | -9/Exiles | Welcomed by 8R-AWN 1727 | -9/Exiles | Met EX-HEX 1768 | -9/Exiles | Met EX-BIN 1785 | -9/Exiles | Aligned with FarCom system 1786 | -9/Exiles | Given EX-Vault access code 1815 | -9/Exiles | Opened EX-Vault 1822 | -9/Exiles | Found Latent Energy Streamer 1850 | -9/Exiles | Warned to stay clear of 0b10 Research branches 1884 | -9/Exiles | Met EX-DEC 2053 | -9/Exiles | Identified exit to Mines 2053 | -9/Exiles | Discovered exit to Mines (range 12) 2071 | -9/Exiles | Left Exiles lab with Latent Energy Streamer 2071 | -9/Exiles | Entered Mines 2073 | -8/Mines | Reached level 6 2078 | -8/Mines | Upgraded with Utility slot (x1) 2221 | -8/Mines | Identified exit to Materials 2221 | -8/Mines | Discovered exit to Materials (range 16) 2284 | -8/Mines | Discovered exit to Materials (range 9) 2368 | -8/Mines | Build established: Hacker-Skirmisher 2709 | -8/Mines | Entered Materials 2711 | -8/Materials | Reached level 7 2721 | -8/Materials | Upgraded with Weapon slot (x1) 2745 | -8/Materials | Identified exit to Garrison 2853 | -8/Materials | Entered Garrison 2855 | -8/Garrison | Reached level 8 2861 | -8/Garrison | Installed Relay Interface Framework 2912 | -8/Garrison | Triggered checkpoint 2924 | -8/Garrison | Garrison Relay disabled 3130 | -8/Garrison | Triggered checkpoint 3156 | -8/Garrison | Reached level 9 3182 | -8/Garrison | Triggered checkpoint 3216 | -8/Garrison | Triggered checkpoint 3242 | -8/Garrison | Triggered checkpoint 3352 | -8/Garrison | Triggered checkpoint 3381 | -8/Garrison | Identified exit to Materials 3381 | -8/Garrison | Discovered exit to Materials (range 12) 3450 | -8/Garrison | Reached level 10 3453 | -8/Garrison | Upgraded with Utility slot (x1) 3470 | -8/Garrison | Build established: Scavenger-Tank 3485 | -8/Garrison | Garrison Relay disabled 3506 | -8/Garrison | Phase Generator disabled 3592 | -8/Garrison | Entered Materials 3592 | -8/Materials | Accompanied by 4 allies 3774 | -8/Materials | Garrison activated, responded to threat 3777 | -8/Materials | Reached level 11 4117 | -8/Materials | Reached level 12 4283 | -8/Materials | Garrison activated, responded to threat 4476 | -8/Materials | Identified exit to Factory 4476 | -8/Materials | Discovered exit to Factory (range 16) 4864 | -8/Materials | Discovered exit to Factory (range 10) 5341 | -8/Materials | Reached level 13 5690 | -8/Materials | Discovered exit to Factory (range 16) 6021 | -8/Materials | Build established: Hacker-Tank 6049 | -8/Materials | Identified exit to Garrison 7168 | -8/Materials | Entered Garrison 7256 | -8/Garrison | Triggered checkpoint 7277 | -8/Garrison | Garrison Relay disabled 7336 | -8/Garrison | Triggered checkpoint 7359 | -8/Garrison | Triggered checkpoint 7378 | -8/Garrison | Triggered checkpoint 7403 | -8/Garrison | Triggered checkpoint 7437 | -8/Garrison | Destroyed 8 combat bots 7488 | -8/Garrison | Triggered checkpoint 7519 | -8/Garrison | Garrison Relay disabled 7559 | -8/Garrison | Discovered exit to Factory (range 14) 7760 | -8/Garrison | Phase Generator disabled 7886 | -8/Garrison | Triggered checkpoint 7944 | -8/Garrison | Reached level 14 7983 | -8/Garrison | Discovered exit to Factory (range 12) 8092 | -8/Garrison | Triggered checkpoint 8130 | -8/Garrison | Garrison Relay disabled 8148 | -8/Garrison | Discovered exit to Factory (range 19) 8233 | -8/Garrison | Upgraded with Weapon slot (x1) 8467 | -8/Garrison | Expanded RIF knowledge: Coupler Efficiency 8602 | -8/Garrison | Entered Factory 8689 | -7/Factory | Garrison activated, responded to threat 8690 | -7/Factory | Reached level 15 8741 | -7/Factory | Identified exit to Garrison 9423 | -7/Factory | Identified exit to Factory 9423 | -7/Factory | Discovered exit to Factory (range 16) 9629 | -7/Factory | Identified exit to Lower Caves 9629 | -7/Factory | Discovered exit to Lower Caves (range 19) 9744 | -7/Factory | Discovered exit to Factory (range 20) 9802 | -7/Factory | First assault squad dispatched 9862 | -7/Factory | Build established: Generator-Tank 9865 | -7/Factory | Allied Derelicts emerged from ambush trap array 10240 | -7/Factory | Reached level 16 10856 | -7/Factory | Sucked down chute 10856 | -7/Factory | Entered Waste 10868 | -7/Waste | Spotted C-40 Crusher 10869 | -7/Waste | Spotted C-40 Crusher 10871 | -7/Waste | EMP discharged 10882 | -7/Waste | Spotted C-40 Crusher 10882 | -7/Waste | Spotted C-40 Crusher 10893 | -7/Waste | System corruption reached 10% 10894 | -7/Waste | Crushed by Compactor (1 part destroyed, 1 dropped) 10896 | -7/Waste | Allies destroyed C-40 Crusher 10900 | -7/Waste | 2 allies followed down the chute 10909 | -7/Waste | Crushed by Compactor (1 part destroyed, 1 dropped) 10912 | -7/Waste | Crushed by Compactor (1 part destroyed, 1 dropped) 10915 | -7/Waste | Crushed by Compactor (1 part destroyed, 2 dropped) 10918 | -7/Waste | Crushed by Compactor (1 part destroyed, 2 dropped) 10921 | -7/Waste | Crushed by Compactor (1 part destroyed, 1 dropped) 10921 | -7/Waste | Crushed by Compactor (1 part destroyed, 1 dropped) 10924 | -7/Waste | Crushed by Compactor (1 part destroyed, 2 dropped) 10927 | -7/Waste | Crushed by Compactor (1 part destroyed, 1 dropped) 10930 | -7/Waste | Crushed by Compactor (1 part destroyed) 10961 | -7/Waste | Lost 10 parts (2p1n4u3w) 10961 | -7/Waste | Core integrity fell below 50% 10965 | -7/Waste | Destroyed C-40 Crusher 10971 | -7/Waste | EMP discharged 10986 | -7/Waste | Core integrity fell below 20% 11003 | -7/Waste | Destroyed by C-40 Crusher with Compactor Last Messages --------------- 10992_ Slammed into C-40 Crusher. 10993_ 4 Matter crushed. 10994_ Slammed into C-40 Crusher. 10994_ 5 Matter crushed. 10994_ 4 Matter crushed. 10995_ Slammed into C-40 Crusher. 10996_ 5 Matter crushed. 10997_ Slammed into C-40 Crusher. 10997_ 2 Matter crushed. 10997_ 5 Matter crushed. 10998_ Slammed into C-40 Crusher. 10999_ 5 Matter crushed. 11000_ Slammed into C-40 Crusher. 11000_ 2 Matter crushed. 11000_ 5 Matter crushed. 11001_ Slammed into C-40 Crusher. 11002_ 2 Matter crushed. 11002_ 4 Matter crushed. 11003_ Slammed into C-40 Crusher. 11003_ 5 Matter crushed. Map ----- +----------------------------------------------------+ | ??????????#??#?##### ??????????????????????? | | ???????????######### ? ??????????????????? | | ???????###?######### ?????????????????? | | ???##?##?########### ???????????????? | | ?#??#?#?############## ######## ?????????????? | | ???################### ######## ?????????????? | | ?#??###?############## ######## #??????????? | | ##?#?################# ######## ?#?????????? | | ##??######?########### ######## ? ###????????? | | ##??################ ?? ???????? | | #################### ???????? | | ##?################# ???????? | | ???################# ??????? | | ###################### ######## ######?????? | | #####?################ ######## ##?#?#?????? | | #?###### #### ######## ####???????? | | ######## % #### ######## ####?##????? | | ####?### #### ######## #######????? | | ######## =* ######## ????? | | ######## ######## ????? | | ######## ######## ????? | | ??###### ######## ????? | | ?#?##### #### ######## #######????? | | ######## #### !CC######## #######????? | | ######## ] #### CC######## #######????? | | ##?#?################# CC@######## #######????? | | ?##################### CC%######## ########???? | | ??############################## ##?# ????? | | ################################ #### ????? | | #?############################## #### ????? | | ###?############################ ####?????? | | ##?############################# #### ????? | | ??############################## ###? ????? | | #?############################## ###??????? | | ???############################# ####?????? | | ???#?#?####################################??????? | | ????#?#?##?############################?#?#??????? | | ??????##?#################################???????? | | ??????????###########################?#?##???????? | | ??????????####?#########################?????????? | | ????????????#######################?####?????????? | | ????????????#?#######?###############?#??????????? | | ??????????????######?#?###########?###???????????? | | ?????????????###???#?##?############?????????????? | | ????????????????####?#####?###???#???????????????? | | ???????????????????#?#?##??###???????????????????? | | ?????????????????????????#???????????????????????? | | ?????????????????????????????????????????????????? | | ?????????????????????????????????????????????????? | | ?????????????????????????????????????????????????? | +----------------------------------------------------+ Best States ------------- Heat Dissipation 91 Energy Generation 54 Energy Capacity 1030 Matter Stores 300 Matter Capacity 300 Sight Range 16 Terrain Scan Range 20 Terrain Scan Density 885 Armor Coverage 600 Resistance: KI 50 Resistance: TH 55 Resistance: EX 55 Resistance: EM 35 Resistance: I 35 Resistance: S 35 Resistance: P 35 Utility Shielding 33 Evasion (%) 50 Targeting Accuracy 5 Offensive Hacking 20 Defensive Hacking 5 Item Schematics ----------------- None Robot Schematics ------------------ None Fabricated ------------ Nothing Alien Tech Used ----------------- None Achievements -------------- Omniscient Cartographer Short-term Sacrifices Challenges ------------ None RPGLIKE | -11 -10 -10 -9 -9 -9 -8 -8 -8 -8 -8 -7 -7 --------- Run | Scr Mat Min Mat Min Exi Min Mat Gar Mat Gar Fac Was Levels Raised 15 | . . 1 3 . . 1 1 3 3 1 2 . XP Earned 29075 | 6000 1080 1125 3836 500 350 1295 1949 4198 4010 1513 3148 71 XP Spent 28255 | 5970 . 1500 2930 850 . 2250 1485 4395 4520 1400 2955 . Upgrades 70 | 17 . 2 4 2 . 2 8 9 15 1 10 . Power Slot 2 | 1 . . . 1 . . . . . . . . Propulsion Slot 1 | 1 . . . . . . . . . . . . Utility Slot 7 | 3 . 1 1 . . 1 . 1 . . . . Weapon Slot 4 | 1 . . 1 . . . 1 . . 1 . . Core Integrity 17 | . . . . . . . 7 1 8 . 1 . Heat Dissipation 11 | 9 . . 1 . . 1 . . . . . . Energy Generation 2 | . . . . . . . . 2 . . . . Mass Support 1 | . . 1 . . . . . . . . . . Terrain Scan Density 8 | . . . . 1 . . . . . . 7 . Ranged Accuracy 5 | 2 . . . . . . . . 3 . . . Hack Defense % 1 | . . . 1 . . . . . . . . . KI Resistance % 3 | . . . . . . . . 2 . . 1 . TH Resistance % 4 | . . . . . . . . 2 1 . 1 . EX Resistance % 4 | . . . . . . . . 1 3 . . . Protomatter Created 2676 | . 58 144 . . . 20 . 252 1182 438 482 100 Integrity Restored 2719 | . 84 120 . . . 27 . 407 1430 383 268 . Core 1752 | . 67 82 . . . 27 . 313 799 249 215 . Parts 967 | . 17 38 . . . . . 94 631 134 53 . Protomatter Decayed 1655 | . 20 183 . . . . . 96 677 256 377 46 Game ------ Seed FrostSpikedMinigun Manual? 0 Play Time 01:36:37 Cumulative 102.4 hours Start 2021.11.17 @ 17:25:24 End 2021.11.17 @ 19:08:20 Sessions 1 Manual Loads 0 Difficulty Explorer Special Mode Winter2019/RPGLIKE Game No. 29 Rogue 0 Adventurer 0 Explorer 29 Win Type - Total 4 Types 0/1/0/2/0/0/0/0/1 Lore% 51 Gallery% 44 Achievement% 48 Wizard Run 0 Options --------- ASCII 0 Keyboard 0 Movement Mouse Keybinds 0 Fullscreen 2 Font 18/SmallcapsGlow Map View 76x50 Tactical HUD 1 Map Filters NONE Filters NONE Steam 1 RUN: 652bd5f3-cb23-410f-b64e-423e9d3a3448